[Event "*** SCC Grand Prix: Titled Tuesday Blitz"]
[Site "Chess.com"]
[Date "2020.08.11"]
[Round "7"]
[White "GianmarcoVaR"]
[Black "Dvacetsekund"]
[Result "1-0"]
[WhiteElo "2452"]
[BlackElo "2149"]
[TimeControl "180+1"]
[EndTime "11:18:55 PDT"]
[Termination "GianmarcoVaR won by checkmate"]

1. d4 {[%clk 0:02:38.6]} 1... Nf6 {[%clk 0:02:57.8]} 2. c4 {[%clk 0:02:38]} 2...
e6 {[%clk 0:02:53.8]} 3. g3 {[%clk 0:02:30.4]} 3... Bb4+ {[%clk 0:02:50.3]} 4.
Bd2 {[%clk 0:02:27.7]} 4... Qe7 {[%clk 0:02:47.9]} 5. Bg2 {[%clk 0:02:27]} 5...
Nc6 {[%clk 0:02:44.1]} 6. e3 {[%clk 0:02:25.6]} 6... O-O {[%clk 0:02:35.3]} 7.
Ne2 {[%clk 0:02:18.8]} 7... Bxd2+ {[%clk 0:02:26.6]} 8. Nxd2 {[%clk 0:02:18.9]}
8... d6 {[%clk 0:02:24.6]} 9. O-O {[%clk 0:01:58.5]} 9... e5 {[%clk 0:02:24.7]}
10. dxe5 {[%clk 0:01:57.4]} 10... dxe5 {[%clk 0:02:08]} 11. Nc3 {[%clk
0:01:57.2]} 11... Bf5 {[%clk 0:01:46.1]} 12. Nd5 {[%clk 0:01:54.5]} 12... Nxd5
{[%clk 0:01:45.2]} 13. cxd5 {[%clk 0:01:55.4]} 13... Nd8 {[%clk 0:01:24.5]} 14.
Nc4 {[%clk 0:01:38.8]} 14... e4 {[%clk 0:01:16.8]} 15. Rc1 {[%clk 0:01:29.4]}
15... b6 {[%clk 0:01:13]} 16. d6 {[%clk 0:01:26.4]} 16... cxd6 {[%clk
0:01:08.7]} 17. Nxd6 {[%clk 0:01:24.8]} 17... Bg6 {[%clk 0:01:04.2]} 18. Qd5
{[%clk 0:01:19.3]} 18... Ne6 {[%clk 0:00:57.5]} 19. h4 {[%clk 0:00:39.3]} 19...
Rad8 {[%clk 0:00:54.5]} 20. Rfd1 {[%clk 0:00:36.8]} 20... h6 {[%clk 0:00:30.9]}
21. Qe5 {[%clk 0:00:29.5]} 21... f6 {[%clk 0:00:23.7]} 22. Nf5 {[%clk
0:00:29.1]} 22... Qf7 {[%clk 0:00:18.2]} 23. Qxe4 {[%clk 0:00:28.9]} 23... Nc5
{[%clk 0:00:16.2]} 24. Ne7+ {[%clk 0:00:22.8]} 24... Kh7 {[%clk 0:00:14.7]} 25.
Qxg6+ {[%clk 0:00:14.8]} 25... Qxg6 {[%clk 0:00:15.6]} 26. Nxg6 {[%clk
0:00:15.7]} 26... Kxg6 {[%clk 0:00:16.1]} 27. b4 {[%clk 0:00:15.4]} 27... Ne6
{[%clk 0:00:10.7]} 28. Bd5 {[%clk 0:00:12]} 28... Rfe8 {[%clk 0:00:06]} 29. Bxe6
{[%clk 0:00:10.6]} 29... Rxd1+ {[%clk 0:00:06.4]} 30. Rxd1 {[%clk 0:00:11.5]}
30... Rxe6 {[%clk 0:00:07]} 31. Rd7 {[%clk 0:00:11.7]} 31... a5 {[%clk
0:00:05.3]} 32. bxa5 {[%clk 0:00:10.6]} 32... bxa5 {[%clk 0:00:06.2]} 33. Ra7
{[%clk 0:00:11]} 33... Re5 {[%clk 0:00:06.6]} 34. a4 {[%clk 0:00:10.4]} 34...
Rc5 {[%clk 0:00:06.5]} 35. Kg2 {[%clk 0:00:09.8]} 35... h5 {[%clk 0:00:06.7]}
36. Kf3 {[%clk 0:00:08.6]} 36... Kf5 {[%clk 0:00:07.1]} 37. Rxg7 {[%clk
0:00:07.7]} 37... Rc4 {[%clk 0:00:06.2]} 38. Rb7 {[%clk 0:00:07.7]} 38... Rxa4
{[%clk 0:00:06]} 39. Rb5+ {[%clk 0:00:07.2]} 39... Kg6 {[%clk 0:00:06.4]} 40.
Rb6 {[%clk 0:00:06.7]} 40... Rb4 {[%clk 0:00:05.2]} 41. Rxb4 {[%clk 0:00:06.1]}
41... axb4 {[%clk 0:00:05.3]} 42. Ke4 {[%clk 0:00:07]} 42... b3 {[%clk
0:00:01.4]} 43. Kd3 {[%clk 0:00:07.2]} 43... Kf5 {[%clk 0:00:02.3]} 44. f3
{[%clk 0:00:06.5]} 44... Ke5 {[%clk 0:00:01.9]} 45. Kc3 {[%clk 0:00:06.8]} 45...
f5 {[%clk 0:00:02.4]} 46. Kxb3 {[%clk 0:00:06.7]} 46... Kd5 {[%clk 0:00:03.3]}
47. Kc3 {[%clk 0:00:07]} 47... Kc5 {[%clk 0:00:04.2]} 48. e4 {[%clk 0:00:06.1]}
48... fxe4 {[%clk 0:00:04.2]} 49. fxe4 {[%clk 0:00:07]} 49... Kd6 {[%clk
0:00:04.3]} 50. Kd4 {[%clk 0:00:07.9]} 50... Ke6 {[%clk 0:00:04.9]} 51. e5
{[%clk 0:00:07]} 51... Kf5 {[%clk 0:00:05.4]} 52. Kd5 {[%clk 0:00:07.9]} 52...
Kg4 {[%clk 0:00:06.3]} 53. e6 {[%clk 0:00:08.4]} 53... Kxg3 {[%clk 0:00:07.2]}
54. e7 {[%clk 0:00:09.3]} 54... Kxh4 {[%clk 0:00:08.1]} 55. e8=Q {[%clk
0:00:10]} 55... Kh3 {[%clk 0:00:09]} 56. Qg8 {[%clk 0:00:10.3]} 56... h4 {[%clk
0:00:09.9]} 57. Ke4 {[%clk 0:00:11.2]} 57... Kh2 {[%clk 0:00:10.5]} 58. Kf3
{[%clk 0:00:12.1]} 58... h3 {[%clk 0:00:11.4]} 59. Kf2 {[%clk 0:00:12.7]} 59...
Kh1 {[%clk 0:00:12.3]} 60. Qg1# {[%clk 0:00:12.9]} 1-0

[Event "*** SCC Grand Prix: Titled Tuesday Blitz"]
[Site "Chess.com"]
[Date "2020.08.11"]
[Round "7"]
[White "Keures"]
[Black "HouseOfDurin"]
[Result "1-0"]
[WhiteElo "2303"]
[BlackElo "2077"]
[TimeControl "180+1"]
[EndTime "11:19:00 PDT"]
[Termination "Keures won on time"]

1. d4 {[%clk 0:03:00]} 1... Nf6 {[%clk 0:02:58.6]} 2. c4 {[%clk 0:02:59.8]} 2...
c5 {[%clk 0:02:59]} 3. d5 {[%clk 0:02:59.8]} 3... b5 {[%clk 0:02:59.6]} 4. cxb5
{[%clk 0:03:00.1]} 4... a6 {[%clk 0:03:00.2]} 5. bxa6 {[%clk 0:03:00.7]} 5...
Bxa6 {[%clk 0:03:01.1]} 6. Nc3 {[%clk 0:03:01.4]} 6... d6 {[%clk 0:03:01.6]} 7.
e4 {[%clk 0:03:01]} 7... Bxf1 {[%clk 0:03:02.5]} 8. Kxf1 {[%clk 0:03:01.8]} 8...
Nbd7 {[%clk 0:03:03]} 9. Nf3 {[%clk 0:03:02]} 9... g6 {[%clk 0:03:03.6]} 10. g3
{[%clk 0:03:02.2]} 10... Bg7 {[%clk 0:03:04.2]} 11. Kg2 {[%clk 0:03:02.6]} 11...
O-O {[%clk 0:03:04.7]} 12. h3 {[%clk 0:03:03.1]} 12... Qa5 {[%clk 0:03:04.1]}
13. Re1 {[%clk 0:03:02.9]} 13... Ne8 {[%clk 0:03:03.2]} 14. Qc2 {[%clk
0:02:55.6]} 14... Nc7 {[%clk 0:02:59.4]} 15. Bg5 {[%clk 0:02:52.8]} 15... Rfe8
{[%clk 0:02:52.3]} 16. Re2 {[%clk 0:02:52]} 16... Rab8 {[%clk 0:02:25]} 17. Rc1
{[%clk 0:02:42.6]} 17... Nb5 {[%clk 0:01:56.6]} 18. Nxb5 {[%clk 0:02:39.5]}
18... Rxb5 {[%clk 0:01:56]} 19. b3 {[%clk 0:02:38]} 19... Qa3 {[%clk 0:01:42.1]}
20. Rce1 {[%clk 0:02:20.4]} 20... Ne5 {[%clk 0:01:40.1]} 21. Nxe5 {[%clk
0:02:19.6]} 21... Bxe5 {[%clk 0:01:41]} 22. Qc1 {[%clk 0:02:02.7]} 22... Qb4
{[%clk 0:01:06]} 23. Bd2 {[%clk 0:01:57.8]} 23... Qd4 {[%clk 0:01:04.4]} 24. Bf4
{[%clk 0:01:47.8]} 24... Bg7 {[%clk 0:00:54.3]} 25. Be3 {[%clk 0:01:46.8]} 25...
Qxe4+ {[%clk 0:00:50]} 26. Kh2 {[%clk 0:01:41.7]} 26... Qxd5 {[%clk 0:00:49.8]}
27. Bh6 {[%clk 0:01:28.1]} 27... e6 {[%clk 0:00:44.2]} 28. Bxg7 {[%clk
0:01:25.9]} 28... Kxg7 {[%clk 0:00:45.1]} 29. Rd1 {[%clk 0:01:22.1]} 29... Qf3
{[%clk 0:00:38.9]} 30. Qd2 {[%clk 0:01:15.5]} 30... d5 {[%clk 0:00:36.2]} 31.
Re3 {[%clk 0:01:15.9]} 31... Qf6 {[%clk 0:00:31.7]} 32. Rc1 {[%clk 0:01:15.1]}
32... d4 {[%clk 0:00:24.3]} 33. Re2 {[%clk 0:01:11.1]} 33... e5 {[%clk
0:00:20.8]} 34. Qd3 {[%clk 0:00:59.6]} 34... Ra5 {[%clk 0:00:18.7]} 35. Rce1
{[%clk 0:00:54.6]} 35... e4 {[%clk 0:00:16.6]} 36. Qd2 {[%clk 0:00:47.9]} 36...
Ra6 {[%clk 0:00:09]} 37. Rxe4 {[%clk 0:00:45.5]} 37... Rxe4 {[%clk 0:00:09.6]}
38. Rxe4 {[%clk 0:00:45.4]} 38... Re6 {[%clk 0:00:09]} 39. Rf4 {[%clk
0:00:45.1]} 39... Qe5 {[%clk 0:00:08.1]} 40. Qc1 {[%clk 0:00:44.6]} 40... g5
{[%clk 0:00:06.4]} 41. Rg4 {[%clk 0:00:42.5]} 41... f6 {[%clk 0:00:06.7]} 42. f4
{[%clk 0:00:23.5]} 42... Qe2+ {[%clk 0:00:05.1]} 43. Kh1 {[%clk 0:00:23.5]}
43... h5 {[%clk 0:00:05]} 44. fxg5 {[%clk 0:00:14.3]} 44... hxg4 {[%clk
0:00:05.1]} 45. gxf6+ {[%clk 0:00:14.7]} 45... Kxf6 {[%clk 0:00:05.2]} 46. Qh6+
{[%clk 0:00:14.2]} 46... Ke7 {[%clk 0:00:05.7]} 47. Qg7+ {[%clk 0:00:14.1]}
47... Kd6 {[%clk 0:00:05.9]} 48. Qf8+ {[%clk 0:00:14.1]} 48... Kd5 {[%clk
0:00:06.1]} 49. Qa8+ {[%clk 0:00:10.9]} 49... Ke5 {[%clk 0:00:05.7]} 50. Qh8+
{[%clk 0:00:10.4]} 50... Kd6 {[%clk 0:00:04.6]} 51. Qf8+ {[%clk 0:00:09.1]}
51... Re7 {[%clk 0:00:04]} 52. Qf4+ {[%clk 0:00:08.5]} 52... Qe5 {[%clk
0:00:03]} 53. Qh6+ {[%clk 0:00:08.1]} 53... Re6 {[%clk 0:00:02.7]} 54. Qf8+
{[%clk 0:00:08.6]} 54... Kd5 {[%clk 0:00:02.4]} 55. Qa8+ {[%clk 0:00:07.8]}
55... Kd6 {[%clk 0:00:02]} 56. Qb8+ {[%clk 0:00:08.1]} 56... Ke7 {[%clk
0:00:01.7]} 57. Qc7+ {[%clk 0:00:08.4]} 57... Kf6 {[%clk 0:00:01.7]} 58. Qd8+
{[%clk 0:00:08.2]} 1-0

[Event "*** SCC Grand Prix: Titled Tuesday Blitz"]
[Site "Chess.com"]
[Date "2020.08.11"]
[Round "7"]
[White "12teen"]
[Black "SilviusTiberius"]
[Result "1-0"]
[WhiteElo "2686"]
[BlackElo "2520"]
[TimeControl "180+1"]
[EndTime "11:19:01 PDT"]
[Termination "12teen won by checkmate"]

1. g3 {[%clk 0:03:00.9]} 1... Nf6 {[%clk 0:02:59.4]} 2. Bg2 {[%clk 0:03:00.8]}
2... g6 {[%clk 0:03:00.3]} 3. d3 {[%clk 0:03:01.1]} 3... Bg7 {[%clk 0:03:00.8]}
4. e4 {[%clk 0:03:01.6]} 4... d6 {[%clk 0:03:00.3]} 5. Nc3 {[%clk 0:03:02.1]}
5... c5 {[%clk 0:02:59.9]} 6. f4 {[%clk 0:03:02.5]} 6... Nc6 {[%clk 0:02:59]} 7.
h3 {[%clk 0:03:02.7]} 7... O-O {[%clk 0:02:56.5]} 8. g4 {[%clk 0:03:03.1]} 8...
Nd4 {[%clk 0:02:42]} 9. Nf3 {[%clk 0:02:59.7]} 9... Nd7 {[%clk 0:02:19.7]} 10.
h4 {[%clk 0:02:58.4]} 10... Nb8 {[%clk 0:02:17.1]} 11. f5 {[%clk 0:02:57.3]}
11... Nbc6 {[%clk 0:02:03.9]} 12. h5 {[%clk 0:02:38.8]} 12... Nxf3+ {[%clk
0:02:01.1]} 13. Bxf3 {[%clk 0:02:35.7]} 13... Nd4 {[%clk 0:01:59.4]} 14. Bg2
{[%clk 0:02:27.1]} 14... e6 {[%clk 0:01:58.2]} 15. hxg6 {[%clk 0:02:16.3]} 15...
fxg6 {[%clk 0:01:54.4]} 16. Ne2 {[%clk 0:02:08.6]} 16... d5 {[%clk 0:01:42.9]}
17. c3 {[%clk 0:02:04.2]} 17... Nxe2 {[%clk 0:01:39.2]} 18. Qxe2 {[%clk
0:02:05.1]} 18... dxe4 {[%clk 0:01:37.5]} 19. dxe4 {[%clk 0:02:00]} 19... exf5
{[%clk 0:01:35.4]} 20. gxf5 {[%clk 0:01:51.4]} 20... Qf6 {[%clk 0:01:03.8]} 21.
Be3 {[%clk 0:01:43.2]} 21... gxf5 {[%clk 0:00:51.8]} 22. Bxc5 {[%clk 0:01:40.4]}
22... Re8 {[%clk 0:00:45.3]} 23. Bd4 {[%clk 0:01:36.4]} 23... Qg5 {[%clk
0:00:42.5]} 24. e5 {[%clk 0:01:23.1]} 24... Qg3+ {[%clk 0:00:36.6]} 25. Kd2
{[%clk 0:01:20.5]} 25... Be6 {[%clk 0:00:23.2]} 26. Rag1 {[%clk 0:01:08.3]}
26... Rad8 {[%clk 0:00:21.3]} 27. Kc2 {[%clk 0:00:58]} 27... Qf4 {[%clk
0:00:15.9]} 28. Qh5 {[%clk 0:00:46.7]} 28... Kf8 {[%clk 0:00:07.3]} 29. Bc5+
{[%clk 0:00:40.5]} 29... Re7 {[%clk 0:00:07.7]} 30. Bxe7+ {[%clk 0:00:34.9]}
30... Kxe7 {[%clk 0:00:08.6]} 31. Qh4+ {[%clk 0:00:30.6]} 31... Qxh4 {[%clk
0:00:08.5]} 32. Rxh4 {[%clk 0:00:31.5]} 32... Bxe5 {[%clk 0:00:09.1]} 33. Rxh7+
{[%clk 0:00:31.6]} 33... Kf6 {[%clk 0:00:08.5]} 34. Rh6+ {[%clk 0:00:30]} 34...
Ke7 {[%clk 0:00:08.7]} 35. Re1 {[%clk 0:00:30]} 35... Bf6 {[%clk 0:00:05.6]} 36.
Rh7+ {[%clk 0:00:28.5]} 36... Kd6 {[%clk 0:00:03.6]} 37. Rd1+ {[%clk 0:00:29.1]}
37... Ke5 {[%clk 0:00:03.8]} 38. Re1+ {[%clk 0:00:28.9]} 38... Kd6 {[%clk
0:00:03.3]} 39. Rxb7 {[%clk 0:00:26.7]} 39... Rg8 {[%clk 0:00:03.7]} 40. Re2
{[%clk 0:00:23.9]} 40... f4 {[%clk 0:00:03.2]} 41. Rxa7 {[%clk 0:00:16.2]} 41...
Bf5+ {[%clk 0:00:03.2]} 42. Kb3 {[%clk 0:00:13.7]} 42... Be6+ {[%clk 0:00:02.9]}
43. c4 {[%clk 0:00:13.5]} 43... Rb8+ {[%clk 0:00:03.1]} 44. Rb7 {[%clk 0:00:14]}
44... Rxb7+ {[%clk 0:00:03.2]} 45. Bxb7 {[%clk 0:00:14.8]} 45... Bd4 {[%clk
0:00:02.4]} 46. Bf3 {[%clk 0:00:14.7]} 46... Bf5 {[%clk 0:00:02.7]} 47. Rd2
{[%clk 0:00:14.7]} 47... Kc5 {[%clk 0:00:03]} 48. Ka4 {[%clk 0:00:10.3]} 48...
Be6 {[%clk 0:00:03.6]} 49. Bd5 {[%clk 0:00:09]} 49... Bd7+ {[%clk 0:00:03.8]}
50. Kb3 {[%clk 0:00:09.1]} 50... Be3 {[%clk 0:00:04.2]} 51. Re2 {[%clk
0:00:09.1]} 51... Bg4 {[%clk 0:00:04.7]} 52. Re1 {[%clk 0:00:08.9]} 52... Kd4
{[%clk 0:00:05.6]} 53. Kc2 {[%clk 0:00:08.3]} 53... f3 {[%clk 0:00:06.4]} 54.
Rf1 {[%clk 0:00:07.1]} 54... Bf5+ {[%clk 0:00:07]} 55. Kd1 {[%clk 0:00:06.9]}
55... Bg4 {[%clk 0:00:07.7]} 56. Bxf3 {[%clk 0:00:06.6]} 56... Bf5 {[%clk
0:00:06.8]} 57. Be2 {[%clk 0:00:06.4]} 57... Be4 {[%clk 0:00:06.5]} 58. Rf8
{[%clk 0:00:07]} 58... Bg5 {[%clk 0:00:06.3]} 59. b4 {[%clk 0:00:07.4]} 59...
Kc3 {[%clk 0:00:06.3]} 60. c5 {[%clk 0:00:06.9]} 60... Bd2 {[%clk 0:00:06.8]}
61. Bf3 {[%clk 0:00:04.9]} 61... Bc2+ {[%clk 0:00:07.2]} 62. Ke2 {[%clk
0:00:05.5]} 62... Bd3+ {[%clk 0:00:08.1]} 63. Kf2 {[%clk 0:00:06.2]} 63... Kc2
{[%clk 0:00:08.3]} 64. c6 {[%clk 0:00:06.7]} 64... Bxb4 {[%clk 0:00:08.9]} 65.
c7 {[%clk 0:00:07.1]} 65... Bc5+ {[%clk 0:00:09.8]} 66. Kg2 {[%clk 0:00:07.2]}
66... Kd2 {[%clk 0:00:10.7]} 67. c8=Q {[%clk 0:00:07.6]} 67... Bf1+ {[%clk
0:00:11.6]} 68. Kxf1 {[%clk 0:00:07]} 68... Kd3 {[%clk 0:00:05]} 69. Qd7+ {[%clk
0:00:07.9]} 69... Bd4 {[%clk 0:00:05.9]} 70. Rd8 {[%clk 0:00:07.6]} 70... Kc3
{[%clk 0:00:06.4]} 71. Qxd4+ {[%clk 0:00:07.8]} 71... Kc2 {[%clk 0:00:07.3]} 72.
Rb8 {[%clk 0:00:07.4]} 72... Kc1 {[%clk 0:00:07.4]} 73. Qb2# {[%clk 0:00:07.5]}
1-0

[Event "*** SCC Grand Prix: Titled Tuesday Blitz"]
[Site "Chess.com"]
[Date "2020.08.11"]
[Round "7"]
[White "GukeshDommaraju"]
[Black "TimofeevAr"]
[Result "1-0"]
[WhiteElo "2677"]
[BlackElo "2843"]
[TimeControl "180+1"]
[EndTime "11:19:05 PDT"]
[Termination "GukeshDommaraju won by checkmate"]

1. e4 {[%clk 0:03:00.9]} 1... e6 {[%clk 0:02:58.1]} 2. d3 {[%clk 0:02:56]} 2...
c5 {[%clk 0:02:57.3]} 3. Nf3 {[%clk 0:02:54.6]} 3... Nc6 {[%clk 0:02:57.1]} 4.
g3 {[%clk 0:02:54.8]} 4... g6 {[%clk 0:02:57]} 5. Bg2 {[%clk 0:02:54.8]} 5...
Bg7 {[%clk 0:02:57.4]} 6. O-O {[%clk 0:02:55.2]} 6... Nge7 {[%clk 0:02:57.5]} 7.
c3 {[%clk 0:02:54.7]} 7... d5 {[%clk 0:02:56.1]} 8. Re1 {[%clk 0:02:52.3]} 8...
h6 {[%clk 0:02:54.6]} 9. e5 {[%clk 0:02:49.8]} 9... g5 {[%clk 0:02:54]} 10. d4
{[%clk 0:02:41.3]} 10... cxd4 {[%clk 0:02:53]} 11. cxd4 {[%clk 0:02:41.2]} 11...
Qb6 {[%clk 0:02:47.6]} 12. Nc3 {[%clk 0:02:22]} 12... O-O {[%clk 0:02:32.4]} 13.
b3 {[%clk 0:02:04.9]} 13... Nf5 {[%clk 0:02:24.5]} 14. Na4 {[%clk 0:02:04.7]}
14... Qd8 {[%clk 0:02:19.1]} 15. Ba3 {[%clk 0:01:30.4]} 15... Re8 {[%clk
0:02:18]} 16. Rc1 {[%clk 0:01:19.2]} 16... g4 {[%clk 0:02:11.1]} 17. Nd2 {[%clk
0:01:18.4]} 17... Qg5 {[%clk 0:02:03.8]} 18. f4 {[%clk 0:01:07]} 18... Qg6
{[%clk 0:02:02.9]} 19. Nf1 {[%clk 0:00:56.9]} 19... Nfxd4 {[%clk 0:01:57.8]} 20.
Ne3 {[%clk 0:00:53.9]} 20... h5 {[%clk 0:01:57.7]} 21. Bc5 {[%clk 0:00:52.3]}
21... Nf5 {[%clk 0:01:54.7]} 22. Qd3 {[%clk 0:00:47.9]} 22... Nxe3 {[%clk
0:01:51.2]} 23. Qxg6 {[%clk 0:00:47.6]} 23... fxg6 {[%clk 0:01:51.1]} 24. Bxe3
{[%clk 0:00:47.2]} 24... Bf8 {[%clk 0:01:49]} 25. Nc5 {[%clk 0:00:42.4]} 25...
Bxc5 {[%clk 0:01:48.6]} 26. Rxc5 {[%clk 0:00:41.5]} 26... Bd7 {[%clk 0:01:48.8]}
27. Rec1 {[%clk 0:00:41.2]} 27... Rec8 {[%clk 0:01:47.7]} 28. Bf1 {[%clk
0:00:40.6]} 28... a6 {[%clk 0:01:41.6]} 29. Kf2 {[%clk 0:00:39]} 29... Kf7
{[%clk 0:01:41.4]} 30. R5c2 {[%clk 0:00:37.3]} 30... g5 {[%clk 0:01:17.7]} 31.
fxg5 {[%clk 0:00:27.3]} 31... Nxe5 {[%clk 0:01:17.4]} 32. Rc7 {[%clk 0:00:27.1]}
32... Rxc7 {[%clk 0:01:07.3]} 33. Rxc7 {[%clk 0:00:26.6]} 33... Rc8 {[%clk
0:01:07.2]} 34. Rxb7 {[%clk 0:00:26.9]} 34... Rc2+ {[%clk 0:01:00.5]} 35. Ke1
{[%clk 0:00:23.6]} 35... Rxa2 {[%clk 0:01:00.8]} 36. Bf4 {[%clk 0:00:18.9]}
36... Nf3+ {[%clk 0:01:00.8]} 37. Kd1 {[%clk 0:00:19.2]} 37... Ra1+ {[%clk
0:00:51]} 38. Bc1 {[%clk 0:00:18.7]} 38... Nxg5 {[%clk 0:00:37]} 39. Rxd7+
{[%clk 0:00:17.8]} 39... Kf6 {[%clk 0:00:37.4]} 40. Ra7 {[%clk 0:00:17.1]} 40...
Nf3 {[%clk 0:00:35.5]} 41. Rxa6 {[%clk 0:00:16.6]} 41... Rxa6 {[%clk 0:00:34.8]}
42. Bxa6 {[%clk 0:00:16.4]} 42... Nxh2 {[%clk 0:00:35.7]} 43. b4 {[%clk
0:00:16.8]} 43... h4 {[%clk 0:00:31.3]} 44. gxh4 {[%clk 0:00:16.5]} 44... g3
{[%clk 0:00:31.6]} 45. Bf4 {[%clk 0:00:16.2]} 45... Ng4 {[%clk 0:00:29.2]} 46.
Bxg3 {[%clk 0:00:15.8]} 46... e5 {[%clk 0:00:28.8]} 47. b5 {[%clk 0:00:15.4]}
47... Ne3+ {[%clk 0:00:28.9]} 48. Ke2 {[%clk 0:00:13.2]} 48... Nc4 {[%clk
0:00:29.3]} 49. Bf2 {[%clk 0:00:13.5]} 49... d4 {[%clk 0:00:29.1]} 50. Kd3
{[%clk 0:00:13]} 50... Nb6 {[%clk 0:00:26.9]} 51. Ke4 {[%clk 0:00:13.5]} 51...
Ke6 {[%clk 0:00:23.5]} 52. h5 {[%clk 0:00:13.1]} 52... Nc4 {[%clk 0:00:23.6]}
53. Bc8+ {[%clk 0:00:12]} 53... Kf6 {[%clk 0:00:22.4]} 54. Ba6 {[%clk
0:00:10.4]} 54... Ke6 {[%clk 0:00:21.9]} 55. h6 {[%clk 0:00:09.7]} 55... Nd6+
{[%clk 0:00:22.3]} 56. Kd3 {[%clk 0:00:09.1]} 56... Kf6 {[%clk 0:00:22.8]} 57.
b6 {[%clk 0:00:08.9]} 57... Kg6 {[%clk 0:00:23.1]} 58. b7 {[%clk 0:00:09.1]}
58... Nxb7 {[%clk 0:00:22.6]} 59. Bxb7 {[%clk 0:00:10]} 59... Kxh6 {[%clk
0:00:23.3]} 60. Ke4 {[%clk 0:00:10.4]} 60... Kg6 {[%clk 0:00:23.6]} 61. Kxe5
{[%clk 0:00:10.9]} 61... d3 {[%clk 0:00:24]} 62. Be4+ {[%clk 0:00:11]} 62... Kg5
{[%clk 0:00:24.5]} 63. Bxd3 {[%clk 0:00:11.9]} 63... Kg4 {[%clk 0:00:25]} 64.
Be4 {[%clk 0:00:11.9]} 64... Kh3 {[%clk 0:00:24.9]} 65. Bf3 {[%clk 0:00:11.8]}
65... Kh2 {[%clk 0:00:24.8]} 66. Kf4 {[%clk 0:00:12.2]} 66... Kh3 {[%clk
0:00:25.5]} 67. Ke3 {[%clk 0:00:10.4]} 67... Kh2 {[%clk 0:00:25.8]} 68. Bh4
{[%clk 0:00:10.1]} 68... Kh3 {[%clk 0:00:26.2]} 69. Bg5 {[%clk 0:00:09.6]} 69...
Kh2 {[%clk 0:00:27.1]} 70. Kf2 {[%clk 0:00:08.6]} 70... Kh3 {[%clk 0:00:27.2]}
71. Be2 {[%clk 0:00:08.6]} 71... Kh2 {[%clk 0:00:27.2]} 72. Bf1 {[%clk
0:00:08.9]} 72... Kh1 {[%clk 0:00:27.2]} 73. Bg2+ {[%clk 0:00:09.3]} 73... Kh2
{[%clk 0:00:27.5]} 74. Bf4# {[%clk 0:00:10.2]} 1-0